Cogmind - Beta 16 @@@ ROGUE MODE // 2025.11.22 @ 03:46:23 Player: Red Box Result: Destroyed by P-70 Sage with Tesla Rifle Performance ------------- Evolutions (5) 2500 Regions Visited (19) 3800 Robots Destroyed (510) 2550 Value Destroyed (18938) 18938 Prototype IDs (46) 920 Alien Tech Used (0) 0 Bonus (9235) 9235 TOTAL SCORE: 37943 Bonus ------- Triggered High Security 500 High Alert Combat Kills 5112 Follower Combat Kills 1942 Network Hubs Disabled 400 Met Data Miner 300 Met Zhirov 300 Built Enhanced Grunts 300 A7 Reached Mainframe 300 Met R17 at Cetus 500 Friendly Fire -419 Cogmind --------- Core Integrity 0/1000 Matter 300/300 Energy 94/100 System Corruption 24% Temperature Cool (0) Movement Core (50) Location -5/Factory Parts ------- > --- POWER (1) -------- (None) > --- PROPULSION (3) --- (None) > --- UTILITY (10) ----- (None) > --- WEAPON (3) ------- (None) > --- INVENTORY (5) ---- Centrium Heavy Treads Huge Storage Unit Guided EMP Blaster Peak State ------------ > --- POWER ------------ Quantum Reactor > --- PROPULSION ------- Armored Medium Treads Centrium Heavy Treads > --- UTILITY ---------- High-capacity Storage Unit Experimental Sensor Array Advanced Signal Interpreter Improved Target Analyzer Layered Heavy Armor Plating Light Regenerative Plating Advanced Hacking Suite Advanced System Shield System Guard > --- WEAPON ----------- Advanced KE Penetrator Advanced KE Penetrator Advanced KE Penetrator > --- INVENTORY -------- Micro Fission Core Centrium Heavy Treads Centrium Heavy Treads Energy Well Matter Compressor Layered Medium Armor Plating Centrium Medium Armor Plating Heavy Reflective Plating Improved Thermal Defense Suite Tesla Rifle Advanced Variable Charge Gun Advanced Variable Charge Gun Advanced Variable Charge Gun Advanced KE Penetrator Guided EMP Blaster Scatter Rocket Array [Rating: 125] Favorites ----------- Power Cooled Ion Engine Engine Cooled Ion Engine Power Core Fission Core Reactor Quantum Reactor Propulsion Compact Wheel Treads Centrium Heavy Treads Leg Aluminum Leg Wheel Compact Wheel Flight Unit Nuclear Pulse Array Utility High-capacity Storage Unit Device Sensor Drone Bay Storage High-capacity Storage Unit Processor Advanced Signal Interpreter Hackware System Shield Protection Light Regenerative Plating Weapon Improved EM Shotgun Energy Gun Improved EM Shotgun Energy Cannon Beam Cannon Ballistic Gun Advanced KE Penetrator Ballistic Cannon Flak Cannon Launcher Improved Grenade Launcher Special Weapon Mining Laser Impact Weapon Maul Slashing Weapon Axe Special Melee Weapon Improved Datajack Build | -11 -10 -10 -9 -9 -9 -8 -8 -8 -7 -7 -7 -7 -6 -6 -6 -6 -6 -6 -5 ------- Run | Yrd Mat Min Mat Min Exi Min Mat Sto Fac Low Low Dat Pro Fac Ext Cet Arc Hub Fac Slots Evolved 10 | . . . 2 . . . 2 . 2 . . . . 2 . . . . 2 Power . | . . . . . . . . . . . . . . . . . . . . Propulsion 1 | . . . . . . . . . . . . . . . . . . . 1 Utility 8 | . . . 2 . . . 2 . 2 . . . . 1 . . . . 1 Weapon 1 | . . . . . . . . . . . . . . 1 . . . . . Parts Attached 308 | 7 26 9 27 2 13 1 22 14 30 . . . 1 41 26 13 1 22 53 Power 24 | 1 3 1 3 . 1 . . 1 3 . . . . 3 2 1 . 2 3 Engine 17 | 1 3 1 3 . 1 . . 1 3 . . . . 2 1 . . 1 . Core 5 | . . . . . . . . . . . . . . 1 1 . . . 3 Reactor 2 | . . . . . . . . . . . . . . . . 1 . 1 . Propulsion 42 | 2 9 1 2 1 1 . 6 1 3 . . . . 5 4 . 1 2 4 Treads 15 | . . 1 . . 1 . 3 . . . . . . 2 3 . 1 2 2 Leg 11 | 2 8 . . . . . . . . . . . . . . . . . 1 Wheel 15 | . 1 . 2 1 . . 3 1 3 . . . . 3 1 . . . . Hover . | . . . . . . . . . . . . . . . . . . . . Flight 1 | . . . . . . . . . . . . . . . . . . . 1 Utility 136 | 2 7 2 12 1 5 . 10 4 14 . . . . 18 9 6 . 10 36 Device 52 | 1 1 2 3 1 2 . 2 2 5 . . . . 9 2 2 . 6 14 Storage 9 | 1 2 . 1 . 1 . . 1 2 . . . . . . . . . 1 Processor 13 | . . . 1 . . . 1 . 2 . . . . 2 . . . 2 5 Hackware 17 | . 1 . 4 . . . 2 1 1 . . . . 3 . . . . 5 Protection 45 | . 3 . 3 . 2 . 5 . 4 . . . . 4 7 4 . 2 11 Artifact . | . . . . . . . . . . . . . . . . . . . . Weapon 106 | 2 7 5 10 . 6 1 6 8 10 . . . 1 15 11 6 . 8 10 Energy Gun 42 | 2 5 . 6 . . 1 2 2 5 . . . 1 1 6 3 . 2 6 Energy Cannon 19 | . . 2 3 . 2 . 1 1 . . . . . 6 1 1 . . 2 Ballistic Gun 11 | . 1 . . . 2 . . 1 . . . . . 2 . 1 . 4 . Ballistic Cannon 13 | . . . . . . . 2 2 4 . . . . 3 2 . . . . Launcher 14 | . . 3 . . . . . 2 1 . . . . 3 1 1 . 2 1 Special Weapon 1 | . 1 . . . . . . . . . . . . . . . . . . Impact Weapon 2 | . . . 1 . . . . . . . . . . . . . . . 1 Slashing Weapon 3 | . . . . . 2 . . . . . . . . . 1 . . . . Piercing Weapon . | . . . . . . . . . . . . . . . . . . . . Special Melee Weapon 1 | . . . . . . . 1 . . . . . . . . . . . . Unidentified Prototypes 25 | . . 1 1 1 1 . 1 6 3 . . . . 4 . 3 1 1 2 Corrupted Parts 12 | . . . . . . . . 1 . . . . . . . 2 1 8 . System Corruption 60 | . . . . . . . . 5 . . . . . . . 8 4 43 . Parts Lost 113 | . 9 2 7 1 5 . 6 . 2 . . . . 34 3 . 5 9 30 Power 11 | . 2 1 . . 1 . . . 1 . . . . 3 . . . 1 2 Propulsion 16 | . 2 1 1 1 1 . 2 . . . . . . 3 . . 2 . 3 Utility 59 | . 2 . 4 . 3 . 3 . 1 . . . . 18 . . 3 6 19 Weapon 27 | . 3 . 2 . . . 1 . . . . . . 10 3 . . 2 6 Highest Loss Streak 10 | . 3 1 2 1 5 . 4 . 1 . . . . 10 1 . 5 2 8 To Critical Strikes 2 | . . . . . 2 . . . . . . . . . . . . . . Average Backups 17 | 5 11 14 16 19 15 19 19 18 17 18 18 19 19 16 18 17 15 16 15 Power . | . . . . 1 1 . . . . 2 2 2 2 . 1 1 1 1 . Propulsion 1 | 3 5 2 1 2 1 1 . 1 . . 1 1 1 1 4 3 2 2 2 Utility 5 | . 3 7 5 6 4 8 7 6 7 8 8 9 9 5 2 3 3 2 4 Weapon 8 | . 2 4 8 10 8 10 10 10 8 7 7 7 6 8 10 10 9 9 7 Tool/Special . | . . . . . . . . . . . . . . . . . . . . Unused Backups 79 | . 2 4 7 . 4 . 15 2 6 . 2 . 1 4 5 6 . 4 17 Power 9 | . . . . . 3 . . . 1 . . . . . 3 1 . . 1 Propulsion 17 | . 1 2 . . . . . . . . . . . 2 2 3 . 3 4 Utility 23 | . 1 1 2 . 1 . 4 1 2 . 2 . 1 . . . . . 8 Weapon 29 | . . . 5 . . . 11 1 3 . . . . 2 . 2 . 1 4 Tool/Special 1 | . . 1 . . . . . . . . . . . . . . . . . Average Slot Usage (%) 92 | . 89 98 99 99 87 100 98 98 92 88 92 92 92 82 96 92 93 86 83 Engine 6 | . 5 13 11 11 11 11 8 8 6 7 7 7 7 3 1 . . 4 2 Treads 3 | . . 6 4 . . . 2 . . . . . . 3 6 6 6 6 8 Leg 2 | . 27 13 . . . . . . . . . . . . . . . . . Wheel 8 | . . 6 17 21 21 22 14 17 9 7 7 7 7 4 6 6 4 . . Device 15 | . 3 10 5 11 11 22 25 14 18 27 30 30 25 18 16 13 10 15 10 Storage 8 | . 14 14 11 11 11 11 9 9 7 7 7 7 7 6 6 6 6 6 4 Processor 9 | . . . 11 11 9 . 1 9 16 15 15 15 15 10 6 6 6 8 12 Hackware 4 | . . . 8 . . . 7 12 7 . . . . 4 . . . . 8 Protection 10 | . 9 3 7 11 11 11 10 8 8 7 7 7 12 7 25 33 29 23 12 Energy Gun 9 | . 27 6 15 17 5 . 11 . 5 15 14 15 13 6 9 3 13 11 3 Energy Cannon 2 | . . 17 5 . 2 21 2 . . . . . . 2 . . . . . Ballistic Gun 1 | . . . . . . . . . . . . . . 1 1 4 6 7 11 Ballistic Cannon 3 | . . . . . . . 2 17 9 . . . . 7 7 2 . . . Peak Build Rating 125 | 9 10 17 25 31 33 27 48 48 68 70 71 71 71 86 75 103 103 117 125 Average Rating 54 | 4 8 12 21 24 19 27 41 42 59 68 70 70 68 68 66 76 101 101 107 On Entrance 49 | . 9 9 14 24 25 27 27 47 41 62 67 71 67 68 54 71 103 99 97 Avg Prop Armor Cover (%) 7 | . . 12 10 . 10 . 7 . . . . . . 7 4 4 3 . 4 Naked Turns 7 | . . . . . . . . . . . . . . . . . . . 7 Heaviest Build 128 | 11 28 33 68 65 69 68 83 83 128 108 111 108 117 120 105 127 124 110 115 Greatest Support 107 | 20 20 20 32 32 28 28 28 24 28 28 28 28 28 60 16 16 80 80 107 Greatest Overweight (x) 9 | . 1 2 2 4 3 2 6 4 4 3 3 3 4 9 9 7 7 1 3 Average Overweight (x) 2 | . . 1 1 2 2 2 3 2 2 3 3 3 3 2 6 6 4 . . Largest Inventory Capacity 20 | 8 15 15 20 20 20 20 20 20 20 20 20 20 20 20 20 20 20 20 20 Average Capacity 18 | 7 12 15 16 20 20 20 20 20 20 20 20 20 20 20 20 20 20 20 19 Most Carried 20 | 7 15 15 20 20 20 20 20 20 20 20 20 20 20 20 20 20 20 20 20 Average Carried 18 | 5 11 14 16 19 15 19 19 19 19 19 19 20 19 17 19 19 19 19 18 Final Capacity 20 | 8 15 15 20 20 20 20 20 20 20 20 20 20 20 20 20 20 20 20 5 Final Carried 20 | 7 15 15 20 20 19 20 20 20 20 19 20 20 20 17 20 20 19 20 5 Class Distribution -------------------- 54% | Mutant 18% | Scavenger-Tank 8% | Hacker-Mutant 4% | Tank 4% | Gunner Dominant Class ---------------- Mutant | -10/Materials Mutant | -10/Mines Mutant | -9/Materials Mutant | -9/Mines Mutant | -9/Exiles Mutant | -8/Mines Mutant | -8/Materials Hacker-Mutant | -8/Storage Mutant | -7/Factory Mutant | -7/Lower Caves Mutant | -7/Lower Caves Mutant | -7/Data Miner Mutant | -6/Proximity Caves Gunner | -6/Factory Scavenger-Tank | -6/Extension Scavenger-Tank | -6/Cetus Scavenger-Tank | -6/Archives Scavenger-Tank | -6/Hub_04(d) Scavenger-Tank | -5/Factory Resources | -11 -10 -10 -9 -9 -9 -8 -8 -8 -7 -7 -7 -7 -6 -6 -6 -6 -6 -6 -5 ----------- Run | Yrd Mat Min Mat Min Exi Min Mat Sto Fac Low Low Dat Pro Fac Ext Cet Arc Hub Fac Matter Collected 13773 | 270 475 303 492 100 252 20 647 1036 1923 411 172 . 282 2324 1380 444 22 701 2519 Remotely . | . . . . . . . . . . . . . . . . . . . . Salvage Created 19791 | 134 927 183 2665 281 95 . 1307 1640 1977 120 229 . 48 3160 1546 232 111 1885 3251 Parts 914 | 9 49 17 123 17 1 . 61 86 103 4 10 . 6 131 66 12 5 94 120 Haulers Intercepted 24 | . 2 . 6 . . . 3 5 2 . . . . 3 . . . 3 . Recyclers Shooed 7 | . . . . . . . 1 . . . . . . 2 1 . . . 3 Parts Field Recycled . | . . . . . . . . . . . . . . . . . . . . Retrieved Matter . | . . . . . . . . . . . . . . . . . . . . Parts Self-Destructed 16 | . . . . . . . . . . 1 6 . 9 . . . . . . Prevented 11 | . . . . . . . . . . 3 3 . 5 . . . . . . Parts Restored 3 | . . . . . . . . . 1 . . . . . . . . . 2 Broken 3 | . . . . . . . . . 1 . . . . . . . . . 2 Kills | -11 -10 -10 -9 -9 -9 -8 -8 -8 -7 -7 -7 -7 -6 -6 -6 -6 -6 -6 -5 ------- Run | Yrd Mat Min Mat Min Exi Min Mat Sto Fac Low Low Dat Pro Fac Ext Cet Arc Hub Fac Combat Hostiles Destroyed 401 | . 20 22 52 10 7 . 21 29 44 2 10 . 3 59 18 3 . 28 73 Melee 1 | . . . . . 1 . . . . . . . . . . . . . . Guns 171 | . 18 1 29 3 . . 12 . 6 2 3 . 1 21 5 2 . 23 45 Cannons 105 | . . 8 14 . . . 4 20 29 . . . . 22 6 . . . 2 AOE 113 | . 1 13 6 7 6 . 4 9 6 . 7 . 2 14 7 . . 5 26 Classes Destroyed 23 | 2 6 1 4 . . . 1 2 3 . . . . 2 1 . . 1 . Worker 21 | . . . 1 1 . . . 1 5 . . . . 4 2 . . 6 1 Builder 16 | . 1 1 1 . . . . 2 1 . . . . 5 2 . . 2 1 Tunneler 9 | 3 . . 1 . . . . . . . . . . 1 2 . . 2 . Hauler 24 | . 2 . 6 . . . 3 5 2 . . . . 3 . . . 3 . Recycler 18 | 1 . . 1 . . . 1 2 2 . . . . 3 5 . . . 3 Mechanic 5 | . . . . . . . . . 1 . . . . 1 . . . . 3 Operator 2 | . 1 . . . . . . . . . . . . . . . . 1 . Drone 1 | . . . . . . . 1 . . . . . . . . . . . . Watcher 30 | . 3 . 5 . . . 4 1 6 . . . . 7 . . . 1 3 Swarmer 78 | . 2 9 6 4 . . 7 2 8 . 6 . 3 16 . . . 3 12 Saboteur 6 | . . . . . . . . . . . . . . . 1 . . . 5 Grunt 169 | . 18 . 34 5 . . 7 15 13 . 4 . . 27 8 . . 12 26 Brawler 10 | . . . 1 1 . . . 2 1 . . . . 1 . . . . 4 Duelist 17 | . . . 1 . . . . 2 4 . . . . 2 1 . . . 7 Protector 3 | . . . . . . . . 1 1 . . . . . . . . . 1 Sentry 54 | . . . 10 . . . 7 8 9 . . . . 5 6 . . 4 5 Demolisher 3 | . . . . . . . . 2 . . . . . . 1 . . . . Specialist 1 | . . . . . . . . . . . . . . 1 . . . . . Hunter 11 | . . . . . . . . . 1 2 . . . . 1 . . 6 1 Programmer 27 | . . . . . . . . . 7 . . . . 6 . . . 2 12 Heavy 1 | . . . . . . . . . . . . . . . . . . 1 . Behemoth 1 | . . . . . . . . . . . . . . 1 . . . . . Cetus Guard 3 | . . . . . . . . . . . . . . . . 3 . . . Decomposer 2 | . . . . . . . . . . 2 . . . . . . . . . Assembled 19 | . . 13 . . 6 . . . . . . . . . . . . . . Best Kill Streak 16 | 3 4 5 5 4 6 . 5 11 9 1 7 . 2 16 11 2 . 7 15 Combat Bots Only 15 | . 4 5 4 4 6 . 4 10 5 1 7 . 2 10 6 2 . 5 15 Max Kills in Single Turn 7 | 1 1 3 2 3 2 . 2 6 6 1 4 . 1 5 3 1 . 3 7 Gunslinging 1 | . . . . . . . . . . . 1 . . . . . . . 1 Exploded 6 | . 1 2 2 3 2 . 1 4 1 . 4 . 1 3 2 . . 2 6 Melee 1 | . . . . . 1 . . . . . . . . . . . . . . Uniques/NPCs Destroyed 1 | . . . . . 1 . . . . . . . . . . . . . . 8R-AWN (-9/Exiles) Combat | -11 -10 -10 -9 -9 -9 -8 -8 -8 -7 -7 -7 -7 -6 -6 -6 -6 -6 -6 -5 -------- Run | Yrd Mat Min Mat Min Exi Min Mat Sto Fac Low Low Dat Pro Fac Ext Cet Arc Hub Fac Hostile Shots Fired 2189 | . 128 40 126 22 61 . 58 52 286 6 37 . 7 487 158 32 3 221 465 Missed 720 | . 39 7 45 10 12 . 15 21 95 3 14 . 3 157 63 16 1 73 146 Hits 1469 | . 89 33 81 12 49 . 43 31 191 3 23 . 4 330 95 16 2 148 319 Melee 56 | . . 6 . . . . . . 6 . . . . 7 1 . . . 36 Projectile 1413 | . 89 27 81 12 49 . 43 31 185 3 23 . 4 323 94 16 2 148 283 AOE 5 | . . . . . . . . 3 . . . . . 1 1 . . . . Critical Strikes 75 | . 2 1 1 . 23 . . 1 6 . . . . 11 1 4 . 5 20 Actively Blocked 1 | . 1 . . . . . . . . . . . . . . . . . . Part Disruptions 2 | . . . . . . . . . . . . . . 2 . . . . . Damage Taken 24868 | . 1157 514 1131 209 685 . 620 511 2152 14 270 . 87 5479 903 166 782 2519 7669 Core 2776 | . 122 81 199 40 75 . 46 55 437 . 56 . 5 542 24 17 . 71 1006 Absorbed by Shields 1699 | . . . . . 198 . 78 123 569 15 54 . 71 116 350 125 . . . Redirected to Shielding 38 | . 16 2 . . . . . . . . . . . . . . . . 20 Ignored by Resistances 1050 | . . . . . . . . . 105 15 59 . 15 447 4 133 2 . 270 Regen/Repaired (Parts) 1816 | . 159 . 54 . . . 151 378 155 . . . . 97 122 26 3 264 407 Core Remaining (%) 45 | 100 . 18 . . . 21 . 81 . . . . 28 . . . . 23 . Volleys Fired 1134 | 8 91 37 129 14 5 . 63 53 132 5 9 . 13 218 63 15 17 95 167 Largest 3 | 2 2 2 2 2 1 . 2 2 2 2 2 . 2 3 3 3 2 3 3 Hottest 515 | 80 100 120 128 90 60 . 120 74 150 150 150 . 150 410 205 240 160 515 255 Shots Fired 2255 | 16 174 71 254 26 5 . 119 99 231 10 15 . 18 446 148 28 28 232 335 Gun 1400 | 16 174 4 150 21 . . 92 . 57 10 10 . 11 212 70 15 28 227 303 Cannon 751 | . . 55 100 . 1 . 25 87 164 . . . . 218 72 7 . . 22 Launcher 104 | . . 12 4 5 4 . 2 12 10 . 5 . 7 16 6 6 . 5 10 Special . | . . . . . . . . . . . . . . . . . . . . Kinetic 840 | . . . . . . . . 87 164 . . . . 221 90 15 . 82 181 Thermal 861 | 16 166 59 108 . 1 . 25 . 5 6 10 . 7 142 21 7 28 145 115 Explosive 64 | . . 12 4 5 4 . 2 . 3 . 3 . 3 7 6 . . 5 10 Electromagnetic 490 | . 8 . 142 21 . . 92 12 59 4 2 . 8 76 31 6 . . 29 Robot Hit Streak 50 | 8 10 8 16 7 4 . 17 11 50 21 6 . 6 25 9 6 6 9 16 Robot Miss Streak 10 | 2 6 4 4 3 . . 5 8 7 3 7 . 5 9 3 2 2 5 10 Penetration Max 2 | . . . . . . . . . . . . . . 1 2 1 . 1 1 Secondary Targets 27 | . 3 . 3 . . . 2 . 1 . 1 . . 2 . . . 4 11 Max Gunslinging Chain 1 | . 1 . 1 . . . 1 . 1 . 1 . . 1 . . . 1 1 Shots Hit Robots 1441 | 11 112 31 197 19 20 . 90 78 169 8 14 . 11 259 91 14 16 113 188 Core Hits 1320 | 5 48 31 135 16 11 . 54 127 182 11 21 . 15 241 63 18 6 75 261 Critical Kills 24 | . . . 1 . . . . . . . . . . 3 1 2 . 5 12 Critical Parts Destroyed 31 | . . . . . . . . . . . . . . 7 6 1 . 3 14 Critical Strikes 88 | . 11 . 4 . 1 . . . 3 . . . . 16 11 6 . 8 28 Burn 16 | . 11 . 1 . . . . . . . . . . . 2 . . . 2 Meltdown 1 | . . . 1 . . . . . . . . . . . . . . . . Destroy 56 | . . . . . . . . . . . . . . 10 7 5 . 8 26 Blast 11 | . . . . . . . . . 3 . . . . 5 2 1 . . . Corrupt 3 | . . . 2 . . . . . . . . . . 1 . . . . . Sever 1 | . . . . . 1 . . . . . . . . . . . . . . Melee Attacks 51 | . . . 4 . 30 . 13 1 . . . . . . 2 1 . . . Impact 4 | . . . 4 . . . . . . . . . . . . . . . . Slashing 47 | . . . . . 30 . 13 1 . . . . . . 2 1 . . . Piercing . | . . . . . . . . . . . . . . . . . . . . Sneak Attacks . | . . . . . . . . . . . . . . . . . . . . Combat Hostiles . | . . . . . . . . . . . . . . . . . . . . Follow-up Attacks 4 | . . . . . 4 . . . . . . . . . . . . . . Damage Inflicted 54483 | 119 1712 1172 4458 798 1124 . 2351 3079 6110 150 926 . 638 9879 3904 777 494 4902 11890 Guns 21656 | 119 1389 12 2212 290 . . 1484 . 1142 150 119 . 165 3999 1071 276 494 3716 5018 Cannons 11202 | . . 471 1573 . . . 341 1381 2814 . . . . 2688 1140 136 . . 658 Explosions 20791 | . 323 689 673 508 449 . 526 1698 2154 . 807 . 473 3192 1534 365 . 1186 6214 Melee 834 | . . . . . 675 . . . . . . . . . 159 . . . . Ramming . | . . . . . . . . . . . . . . . . . . . . Kinetic 13992 | . . . . . . . . 1381 2814 . . . . 3636 1247 280 . 1126 3508 Thermal 13751 | 119 1552 483 1753 172 . . 702 495 304 81 119 . 86 2582 363 132 494 2590 1724 Explosive 14455 | . 78 689 330 336 449 . 165 . 1166 . 663 . 255 2221 1534 . . 799 5770 Electromagnetic 11451 | . 82 . 2375 290 . . 1484 1203 1826 69 144 . 297 1440 601 365 . 387 888 Impact . | . . . . . . . . . . . . . . . . . . . . Slashing 834 | . . . . . 675 . . . . . . . . . 159 . . . . Piercing . | . . . . . . . . . . . . . . . . . . . . Highest Corruption 79 | . . . . . . . . 6 2 . . . . 18 23 31 35 79 23 Average Corruption 13 | . . . . . . . . 1 1 . . . . 9 22 26 32 38 6 Corruption Purged 7 | . . . . . . . . . 2 . . . . 5 . . . . . Corruption Blocked . | . . . . . . . . . . . . . . . . . . . . Effects 380 | . . . . . . . . 12 3 . . . . 66 128 31 7 71 62 Message Errors 87 | . . . . . . . . 4 2 . . . . 16 34 9 2 12 8 Matter Fused 83 | . . . . . . . . 2 . . . . . 21 21 9 2 11 17 Heat Flow Errors 34 | . . . . . . . . 2 . . . . . 1 13 2 . 5 11 Energy Discharges 43 | . . . . . . . . 2 . . . . . 10 16 1 . 5 9 Parts Rejected 6 | . . . . . . . . . . . . . . . 1 1 . 4 . Parts Fused 3 | . . . . . . . . 1 . . . . . 1 . . . . 1 Data Loss (minor) 42 | . . . . . . . . 1 1 . . . . 6 18 3 2 9 2 Data Loss (major) 17 | . . . . . . . . . . . . . . 7 4 . . 2 4 Misfires 19 | . . . . . . . . . . . . . . 3 11 1 . 1 3 Alerts 7 | . . . . . . . . . . . . . . . 2 2 . 1 2 Misdirections 1 | . . . . . . . . . . . . . . . . . . . 1 Weapon Failures 38 | . . . . . . . . . . . . . . 1 8 3 1 21 4 Overload Shots 36 | . . . . . . . . . . . . . . 3 . 1 . 8 24 Overflow Damage 798 | . 59 35 94 8 . . 31 5 138 . 21 . . 163 36 . . 3 205 Projectiles 115 | . . 26 29 . . . . 5 18 . . . . 28 1 . . . 8 Explosions 671 | . 59 9 65 8 . . 31 . 120 . 21 . . 135 23 . . 3 197 Melee 12 | . . . . . . . . . . . . . . . 12 . . . . Knockbacks 90 | . . . . . . . . 27 24 . . . . 29 10 . . . . Impact . | . . . . . . . . . . . . . . . . . . . . Kinetic 86 | . . . . . . . . 26 24 . . . . 28 8 . . . . Secondary 4 | . . . . . . . . 1 . . . . . 1 2 . . . . Self-Inflicted Damage 2029 | . 209 74 109 68 . . 105 33 330 . . . 60 222 . . . 160 659 Shots 57 | . 3 3 4 2 . . 3 4 5 . . . 1 4 . . . 4 24 Rammed . | . . . . . . . . . . . . . . . . . . . . Targets Rammed . | . . . . . . . . . . . . . . . . . . . . Kicked . | . . . . . . . . . . . . . . . . . . . . Crushed . | . . . . . . . . . . . . . . . . . . . . Highest Temperature 680 | 72 388 180 242 3 16 . 215 216 265 9 132 . 42 519 245 152 30 606 680 Average Temperature 95 | 26 102 56 56 3 12 . 59 42 58 6 63 . 12 101 78 48 11 144 141 Received Heat Transfer 5263 | . 462 20 438 75 6 . 201 195 476 . 103 . 9 1554 208 . 18 348 1150 Effects 41 | . 2 . . . . . . . . . . . . 6 1 . . 8 24 Shutdowns 8 | . . . . . . . . . . . . . . . . . . 5 3 Energy Bleed 8 | . 1 . . . . . . . . . . . . 1 1 . . 2 3 Interference 11 | . . . . . . . . . . . . . . . . . . . 11 Matter Decay 1 | . . . . . . . . . . . . . . . . . . . 1 Short Circuit 3 | . . . . . . . . . . . . . . . . . . . 3 Damage (minor) 4 | . 1 . . . . . . . . . . . . 1 . . . 1 1 Damage (major) 6 | . . . . . . . . . . . . . . 4 . . . . 2 Siege Activations . | . . . . . . . . . . . . . . . . . . . . Martial Activations . | . . . . . . . . . . . . . . . . . . . . Shielding Activations . | . . . . . . . . . . . . . . . . . . . . Robots Disrupted . | . . . . . . . . . . . . . . . . . . . . Combat Hostiles . | . . . . . . . . . . . . . . . . . . . . Robots Corrupted 12 | . . . 3 . . . 2 . 3 . . . . 3 . 1 . . . Combat Hostiles 9 | . . . 2 . . . 1 . 3 . . . . 2 . 1 . . . Parts Fried 53 | . . . 18 . . . 5 5 15 1 . . . 6 . . . . 3 Impact Corruptions . | . . . . . . . . . . . . . . . . . . . . Robots Melted 2 | . 1 . 1 . . . . . . . . . . . . . . . . Combat Hostiles 2 | . 1 . 1 . . . . . . . . . . . . . . . . Parts Melted 39 | 1 16 1 4 . . . 2 1 . . . . . 4 1 . . 6 3 Heat Transferred 21433 | 275 4686 1036 3099 200 . . 918 615 320 65 100 . 75 2999 767 203 592 2988 2495 Parts Sabotaged 5 | . . . . . . . . . . . . . . 1 4 . . . . Parts Stolen . | . . . . . . . . . . . . . . . . . . . . Parts Stripped . | . . . . . . . . . . . . . . . . . . . . Power Chain Reactions 28 | . 1 . 6 3 . . 6 5 2 . . . . 3 . . . 2 . Alert | -11 -10 -10 -9 -9 -9 -8 -8 -8 -7 -7 -7 -7 -6 -6 -6 -6 -6 -6 -5 ------- Run | Yrd Mat Min Mat Min Exi Min Mat Sto Fac Low Low Dat Pro Fac Ext Cet Arc Hub Fac Maximum Alert Level 5 | . . . 3 2 . . 1 3 3 . . . . 4 3 2 1 4 5 Low Security (%) 34 | 100 100 100 29 . . 100 98 14 7 . . . . 14 . . . 22 . Level 1 12 | . . . 13 37 . . 1 . 31 . . . . 23 10 . 100 9 3 Level 2 28 | . . . 39 62 . . . 36 20 . . . . 18 62 100 . 66 44 Level 3 18 | . . . 16 . . . . 48 40 . . . . 15 26 . . . 33 Level 4 4 | . . . . . . . . . . . . . . 28 . . . 1 3 Level 5 1 | . . . . . . . . . . . . . . . . . . . 10 High Security . | . . . . . . . . . . . . . . . . . . . 4 Max Security . | . . . . . . . . . . . . . . . . . . . . Sterilizations 1 | . . . 1 . . . . . . . . . . . . . . . . Peak Influence 2507 | 15 182 138 886 519 . . 207 759 1031 . . . . 1248 1034 638 380 1211 2507 Initial 592 | . 3 31 9 345 . . . 72 308 . . . . 59 569 576 217 126 592 Average 473 | 2 71 26 404 421 . . 125 599 562 . . . . 686 565 559 267 455 871 Influence Increases 17220 | 20 714 322 1649 364 . . 913 1384 1964 60 230 . 381 2385 1375 294 293 1567 3305 Destroy 0b10 Robot/C 8540 | . 400 180 1040 200 . . 440 680 860 40 200 . 240 1200 740 160 100 560 1500 Destroy 0b10 Robot/NC 705 | 20 35 5 75 5 . . 40 80 90 . . . . 120 70 10 20 75 60 Destroy Leader 1836 | . 100 30 282 40 . . 124 186 246 20 30 . 30 260 74 . . 158 256 Allied During Kill 979 | . . . . . . . 7 286 . . . . 66 19 385 106 110 . . Trap Triggered on 0b10 40 | . . . . . . . 20 . . . . . . . . . . . 20 Successful Hack 609 | . 25 6 39 . . . 61 59 131 . . . . 75 18 . . . 195 Select Force Hacks 90 | . 30 . 30 . . . 30 . . . . . . . . . . . . Disable Machine 1530 | . 60 . 45 60 . . 15 30 330 . . . . 195 30 15 60 405 285 Anti-Garrison Action 200 | . . . . . . . . . . . . . . 200 . . . . . Destroy Structure 1776 | . 64 101 63 59 . . 56 18 187 . . . . 181 58 3 3 339 644 Partial Spotted 15 | . . . . . . . . . . . . . . 15 . . . . . Lose Combat Pursuer 900 | . . . 75 . . . 120 45 120 . . . 45 120 . . . 30 345 Influence Decreases 14723 | 15 637 378 789 907 343 . 742 877 1642 822 468 . 286 1316 1509 780 477 716 2019 Entered New Map 4104 | . 2 51 17 541 343 . . 99 370 370 46 . . 36 595 454 327 234 619 Time Decay 8061 | 15 547 317 702 356 . . 652 598 752 452 422 . 286 770 664 286 80 392 770 Lost Part 1068 | . 88 10 70 10 . . 60 . 20 . . . . 340 30 . 50 90 300 Lost Ally 740 | . . . . . . . 30 180 50 . . . . 20 220 40 20 . 180 Purge Threat 750 | . . . . . . . . . 450 . . . . 150 . . . . 150 Squads Dispatched 122 | . 7 1 12 1 . . 2 7 21 . . . . 27 4 . . 10 30 Investigation 32 | . 5 1 8 1 . . 2 1 3 . . . . 5 . . . 2 4 Extermination 24 | . . . . . . . . . 8 . . . . 8 . . . 2 6 Reinforcement 22 | . 2 . 2 . . . . 2 2 . . . . 5 1 . . 6 2 Assault 31 | . . . 2 . . . . 2 3 . . . . 6 3 . . . 15 Garrison 13 | . . . . . . . . 2 5 . . . . 3 . . . . 3 Intercept . | . . . . . . . . . . . . . . . . . . . . Searches Triggered . | . . . . . . . . . . . . . . . . . . . . Unchained Authorized 3 | . . . . . . . . . 1 . . . . 1 . . . . 1 Data Miner Redirects 8 | . . . . . . . . . . . . . . 5 1 . . 1 1 Construction Impeded 5 | . . . . . . . . 1 . . . . . 2 1 . . 1 . Haulers Reinforced 6 | . . . . . . . . . 2 . . . . 1 . . . 3 . Active Scanning Responses . | . . . . . . . . . . . . . . . . . . . . Cargo Convoy Interrupts . | . . . . . . . . . . . . . . . . . . . . Stealth | -11 -10 -10 -9 -9 -9 -8 -8 -8 -7 -7 -7 -7 -6 -6 -6 -6 -6 -6 -5 --------- Run | Yrd Mat Min Mat Min Exi Min Mat Sto Fac Low Low Dat Pro Fac Ext Cet Arc Hub Fac Distress Signals 25 | . 2 1 5 . . . 3 1 . . . . . 2 1 2 2 4 2 Communications Jammed 16 | . . . . . . . . . 2 . . . . 14 . . . . . Distress Signals 16 | . . . . . . . . . 2 . . . . 14 . . . . . Times Spotted 648 | . 30 20 73 9 6 . 36 44 63 1 10 . 15 99 39 10 25 40 128 Peak Tracking Total 23 | . 4 5 4 4 11 . 4 12 6 1 6 . 4 11 6 5 23 4 22 Tactical Retreats 43 | . . . 4 . 1 . 3 2 7 . . . 1 12 . . . 2 11 Traps | -11 -10 -10 -9 -9 -9 -8 -8 -8 -7 -7 -7 -7 -6 -6 -6 -6 -6 -6 -5 ------- Run | Yrd Mat Min Mat Min Exi Min Mat Sto Fac Low Low Dat Pro Fac Ext Cet Arc Hub Fac Traps Triggered 13 | . 2 . 1 . . . . 3 . . . . . . 2 . . 3 2 Indirectly 2 | . . . . . . . . . . . . . . . . . . 2 . Trap Hack Attempts 39 | . . . . . . . 39 . . . . . . . . . . . . Triggered . | . . . . . . . . . . . . . . . . . . . . Disarmed . | . . . . . . . . . . . . . . . . . . . . Reprogrammed 11 | . . . . . . . 4 . . . . . . . . . . . 7 Reused 4 | . . . . . . . 2 . . . . . . . . . . . 2 Traps Extracted . | . . . . . . . . . . . . . . . . . . . . Installed . | . . . . . . . . . . . . . . . . . . . . Triggered 4 | . . . . . . . 2 . . . . . . . . . . . 2 Machines | -11 -10 -10 -9 -9 -9 -8 -8 -8 -7 -7 -7 -7 -6 -6 -6 -6 -6 -6 -5 ---------- Run | Yrd Mat Min Mat Min Exi Min Mat Sto Fac Low Low Dat Pro Fac Ext Cet Arc Hub Fac Machines Disabled 111 | . 4 . 3 4 3 . 1 2 22 . . . . 13 8 1 4 27 19 Max in Single Turn 19 | . 3 . 1 2 1 . 1 1 6 . . . . 2 2 1 1 19 5 Garrison Access 5 | . . . . . . . . 1 1 . . . . 2 . . . . 1 Network Hub 2 | . . . . . . . . . . . . . . . . . . 2 . Machines Repaired . | . . . . . . . . . . . . . . . . . . . . Machines Dismantled . | . . . . . . . . . . . . . . . . . . . . Machines Sabotaged . | . . . . . . . . . . . . . . . . . . . . Overloaded Fab Kills . | . . . . . . . . . . . . . . . . . . . . Hacking | -11 -10 -10 -9 -9 -9 -8 -8 -8 -7 -7 -7 -7 -6 -6 -6 -6 -6 -6 -5 --------- Run | Yrd Mat Min Mat Min Exi Min Mat Sto Fac Low Low Dat Pro Fac Ext Cet Arc Hub Fac Machines Accessed 140 | . 9 2 15 2 1 . 16 17 28 . 2 4 . 20 3 2 . 4 15 Terminals 76 | . 6 1 9 1 . . 11 12 15 . . . . 8 3 2 . 4 4 Fabricators 8 | . . . . . . . . . 5 . . . . 1 . . . . 2 Repair Stations 12 | . 1 . 2 . . . 2 2 2 . . . . 2 . . . . 1 Recycling Units 18 | . 2 . 2 . . . 1 2 2 . . . . 5 . . . . 4 Scanalyzers 11 | . . . 2 . . . 2 . 3 . . . . 2 . . . . 2 Garrison Access 6 | . . . . . . . . 1 1 . . . . 2 . . . . 2 Total Hacks 558 | . 30 6 65 3 1 . 84 66 93 . 6 30 . 66 7 6 . 8 87 Successful 339 | . 19 2 39 1 1 . 54 45 57 . 6 30 . 31 3 . . . 51 Failed 218 | . 11 4 26 2 . . 29 21 36 . . . . 35 4 6 . 8 36 Catastrophic 29 | . 2 1 5 . . . 2 . 5 . . . . 4 . 2 . 4 4 Database Lockouts 1 | . . . . . . . 1 . . . . . . . . . . . . Manual 260 | . 15 5 36 2 . . 45 33 44 . . . . 30 5 1 . 6 38 Terminals 279 | . 17 5 35 2 . . 52 37 53 . . . . 25 7 6 . 8 32 Fabricators 36 | . . . . . . . . . 12 . . . . 6 . . . . 18 Repair Stations 51 | . 7 . 5 . . . 10 15 5 . . . . 6 . . . . 3 Recycling Units 77 | . 6 . 8 . . . 5 10 7 . . . . 20 . . . . 21 Scanalyzers 62 | . . . 17 . . . 17 . 14 . . . . 5 . . . . 9 Garrison Access 14 | . . . . . . . . 4 2 . . . . 4 . . . . 4 Terminal Hacks 91 | . 2 2 4 1 1 . 9 10 13 . 6 30 . 4 . . . . 9 Record 17 | . . . . . 1 . . . . . 5 11 . . . . . . . Part Schematic 13 | . . . . . . . . 3 1 . . 9 . . . . . . . Robot Schematic 8 | . . . . . . . . 1 . . . 7 . . . . . . . Robot Analysis 15 | . . 1 1 . . . 7 1 5 . . . . . . . . . . Prototype ID Bank 7 | . . . 2 . . . . . 2 . . 3 . . . . . . . Open Door 6 | . . 1 . 1 . . . 3 . . 1 . . . . . . . . Branch Access Points 2 | . . . . . . . . . . . . . . 1 . . . . 1 Machine Index 1 | . . . . . . . . . . . . . . . . . . . 1 Terminal Index 5 | . 1 . . . . . 1 1 . . . . . 1 . . . . 1 Unreport Threat 5 | . . . . . . . . . 3 . . . . 1 . . . . 1 Locate Traps 3 | . 1 . . . . . . 1 . . . . . . . . . . 1 Reprogram Traps 2 | . . . . . . . . . . . . . . . . . . . 2 Recall Investigation 2 | . . . 1 . . . . . . . . . . 1 . . . . . Recall Extermination 2 | . . . . . . . . . 2 . . . . . . . . . . Registered Prototypes 1 | . . . . . . . . . . . . . . . . . . . 1 Zone Layout 2 | . . . . . . . 1 . . . . . . . . . . . 1 Fabricator Hacks 9 | . . . . . . . . . 2 . . . . 3 . . . . 4 Network Status 2 | . . . . . . . . . . . . . . 1 . . . . 1 Load Schematic 3 | . . . . . . . . . 1 . . . . 1 . . . . 1 Build 4 | . . . . . . . . . 1 . . . . 1 . . . . 2 Repair Station Hacks 34 | . 6 . 4 . . . 8 12 3 . . . . . . . . . 1 Scan Component 18 | . 3 . 2 . . . 4 6 2 . . . . . . . . . 1 Repair 16 | . 3 . 2 . . . 4 6 1 . . . . . . . . . . Recycling Unit Hacks 20 | . 2 . 2 . . . 1 2 3 . . . . 4 . . . . 6 Retrieve Matter 3 | . . . . . . . . . 1 . . . . . . . . . 2 Retrieve Components 17 | . 2 . 2 . . . 1 2 2 . . . . 4 . . . . 4 Scanalyzer 46 | . . . 14 . . . 15 . 8 . . . . 3 . . . . 6 Insert Component 17 | . . . 5 . . . 5 . 3 . . . . 2 . . . . 2 Analyze 22 | . . . 7 . . . 6 . 4 . . . . 1 . . . . 4 Retrieve Study 7 | . . . 2 . . . 4 . 1 . . . . . . . . . . Garrison Access Hacks 4 | . . . . . . . . 1 1 . . . . 1 . . . . 1 Seal Access 4 | . . . . . . . . 1 1 . . . . 1 . . . . 1 Unauthorized Hacks 135 | . 9 . 15 . . . 21 20 27 . . . . 16 3 . . . 24 Terminals 93 | . 8 . 12 . . . 20 15 20 . . . . 6 3 . . . 9 Track 6 | . . . . . . . 3 1 1 . . . . 1 . . . . . Assimilate 15 | . 1 . 3 . . . 2 2 6 . . . . . . . . . 1 Botnet 27 | . 1 . 3 . . . 5 5 5 . . . . 3 1 . . . 4 Disrupt 1 | . . . . . . . . . 1 . . . . . . . . . . Operators 4 | . 1 . 1 . . . . 1 1 . . . . . . . . . . Skim 40 | . 5 . 5 . . . 10 6 6 . . . . 2 2 . . . 4 Fabricators 12 | . . . . . . . . . 3 . . . . 2 . . . . 7 Report 1 | . . . . . . . . . . . . . . . . . . . 1 Prioritize 3 | . . . . . . . . . . . . . . 1 . . . . 2 Liberate 5 | . . . . . . . . . 2 . . . . 1 . . . . 2 Haulers 2 | . . . . . . . . . . . . . . . . . . . 2 Recompile 1 | . . . . . . . . . 1 . . . . . . . . . . Repair Stations 1 | . . . . . . . . . . . . . . 1 . . . . . Patch 1 | . . . . . . . . . . . . . . 1 . . . . . Recycling Units 28 | . 1 . 3 . . . 1 5 4 . . . . 6 . . . . 8 Monitor 2 | . . . . . . . . . 1 . . . . . . . . . 1 Reject 10 | . . . 1 . . . . 2 1 . . . . 3 . . . . 3 Recyclers 5 | . . . . . . . . 1 1 . . . . 1 . . . . 2 Mask 8 | . . . 1 . . . . 2 1 . . . . 2 . . . . 2 Tunnel 3 | . 1 . 1 . . . 1 . . . . . . . . . . . . Scanalyzers . | . . . . . . . . . . . . . . . . . . . . Garrison Access 1 | . . . . . . . . . . . . . . 1 . . . . . Jam 1 | . . . . . . . . . . . . . . 1 . . . . . Data Cores Recovered 1 | . . . . . . . . 1 . . . . . . . . . . . Used 1 | . . . . . . . . 1 . . . . . . . . . . . Hacking Detections 117 | . 9 1 15 1 . . 15 13 27 . . . . 17 3 1 . 4 11 Full Trace Events 24 | . 3 1 6 1 . . 1 2 2 . . . . 3 . . . 2 3 Feedback Events 2 | . 1 . . . . . . . . . . . . 1 . . . . . Corruption 1 | . . . . . . . . . . . . . . 1 . . . . . Hackware Fried 1 | . 1 . . . . . . . . . . . . . . . . . . Feedback Blocked 2 | . . . . . . . . 1 . . . . . 1 . . . . . Robot Schematics Acquired 8 | . . . . . . . . 1 . . . 7 . . . . . . . Robots Built . | . . . . . . . . . . . . . . . . . . . . Authchips . | . . . . . . . . . . . . . . . . . . . . Time . | . . . . . . . . . . . . . . . . . . . . Total Robot Build Rating . | . . . . . . . . . . . . . . . . . . . . Part Schematics Acquired 25 | . . . 3 . . . 5 3 4 . . 9 . 1 . . . . . Parts Built 6 | . . . . . . . . . 2 . . . . 1 . . . . 3 Authchips 1 | . . . . . . . . . . . . . . 1 . . . . . Time 412 | . . . . . . . . . 117 . . . . 76 . . . . 219 Total Part Build Rating 41 | . . . . . . . . . 14 . . . . 5 . . . . 22 Part Studies Acquired 7 | . . . 2 . . . 4 . 1 . . . . . . . . . . Parts Repaired 16 | . 3 . 2 . . . 4 6 1 . . . . . . . . . . Time 733 | . 84 . 168 . . . 207 252 22 . . . . . . . . . . Parts Recycled . | . . . . . . . . . . . . . . . . . . . . Recycled Matter . | . . . . . . . . . . . . . . . . . . . . Retrieved Matter . | . . . . . . . . . . . . . . . . . . . . Retrieved Components 76 | . 7 . 11 . . . 2 11 12 . . . . 14 . . . . 19 Parts Scanalyzed 16 | . . . 4 . . . 5 . 3 . . . . 2 . . . . 2 Part Schematics Acquired 12 | . . . 3 . . . 5 . 3 . . . . 1 . . . . . Parts Damaged 3 | . . . 1 . . . 1 . 1 . . . . . . . . . . Bothacking | -11 -10 -10 -9 -9 -9 -8 -8 -8 -7 -7 -7 -7 -6 -6 -6 -6 -6 -6 -5 ------------ Run | Yrd Mat Min Mat Min Exi Min Mat Sto Fac Low Low Dat Pro Fac Ext Cet Arc Hub Fac Used RIF Installer . | . . . . . . . . . . . . . . . . . . . . Robots Hacked . | . . . . . . . . . . . . . . . . . . . . Non-combat . | . . . . . . . . . . . . . . . . . . . . Combat . | . . . . . . . . . . . . . . . . . . . . Robot Hacks Applied . | . . . . . . . . . . . . . . . . . . . . Relay Couplers Released 3 | . . . . . . . . . 3 . . . . . . . . . . Programmers 3 | . . . . . . . . . 3 . . . . . . . . . . Fabnet Peak Effective % . | . . . . . . . . . . . . . . . . . . . . Robots Rewired 14 | . . . . . . . . 1 . . . . . . 13 . . . . Allies Hacked 4 | . . . . . . . . . 1 . . . . . 1 . . . 2 Hacks Repelled . | . . . . . . . . . . . . . . . . . . . . Allies | -11 -10 -10 -9 -9 -9 -8 -8 -8 -7 -7 -7 -7 -6 -6 -6 -6 -6 -6 -5 -------- Run | Yrd Mat Min Mat Min Exi Min Mat Sto Fac Low Low Dat Pro Fac Ext Cet Arc Hub Fac Total Allies 53 | . . . . 3 . . 1 12 5 . . . 1 . 17 5 . . 9 Largest Group 11 | . . . . 3 3 1 1 10 3 . . . 1 1 11 7 6 . 3 Highest-Rated Group 660 | . . . . 40 40 16 16 173 59 . . . 96 89 452 660 626 . 87 Highest-Rated Ally 159 | . . . . 16 16 16 16 31 26 . . . 96 89 159 152 146 . 41 Total Orders 147 | . . . . . 6 2 40 8 52 4 3 1 10 2 8 . 2 . 9 STAY 53 | . . . . . 4 1 16 3 18 1 . . 4 . 4 . 1 . 1 FOLLOW 45 | . . . . . 2 1 15 3 12 1 1 . 4 . 4 . 1 . 1 EXPLORE 5 | . . . . . . . . . . . . . . . . . . . 5 RETURN 44 | . . . . . . . 9 2 22 2 2 1 2 2 . . . . 2 Ally Attacks 444 | . . . . . 44 . 5 68 . . . . 30 2 209 32 18 . 36 Total Damage 8546 | . . . . . 221 . 64 904 . . . . 1051 92 3959 960 723 . 572 Kills 61 | . . . . . . . 1 10 . . . . 9 1 25 7 5 . 3 Allies Corrupted 4 | . . . . . . . . . . . . . . . 2 . . . 2 Allies Melted . | . . . . . . . . . . . . . . . . . . . . Intel | -11 -10 -10 -9 -9 -9 -8 -8 -8 -7 -7 -7 -7 -6 -6 -6 -6 -6 -6 -5 ------- Run | Yrd Mat Min Mat Min Exi Min Mat Sto Fac Low Low Dat Pro Fac Ext Cet Arc Hub Fac Active Infowar (turns) 9377 | 10 423 1 61 . . . 82 . 747 5 17 5 1030 3371 . . . 484 3141 Optics 714 | . . . . . . . . . . . . . . 714 . . . . . Sensors 5808 | . . 1 . . . . 82 . . . . . . 2100 . . . 484 3141 Terrain 779 | 10 423 . 61 . . . . . . . . . . 186 . . . 99 . Machine Analysis 132 | . . . . . . . . . . . . . . . . . . . 132 Jamming 3894 | . . . . . . . . . 747 5 17 5 1030 2090 . . . . . Robot Analysis Total 15 | . . 1 1 . . . 7 1 5 . . . . . . . . . . Derelict Logs Recovered 8 | . . 2 . 2 . . . . . . 1 . 3 . . . . . . Drone Launches 55 | . . . . . . . 11 2 24 1 5 . 3 1 3 . . . 5 Drone Recoveries 49 | . . . . . . . 9 3 23 1 4 1 2 2 1 . . . 3 Exploration | -11 -10 -10 -9 -9 -9 -8 -8 -8 -7 -7 -7 -7 -6 -6 -6 -6 -6 -6 -5 ------------- Run | Yrd Mat Min Mat Min Exi Min Mat Sto Fac Low Low Dat Pro Fac Ext Cet Arc Hub Fac Turns Passed 40082 | 89 2344 1482 4688 804 1191 281 4842 1917 4032 1139 1318 116 1777 5007 2536 623 162 932 4802 Spaces Moved 20751 | 48 1154 862 3012 608 818 228 2350 1057 2371 816 932 81 1068 1734 1062 272 53 245 1980 Core 24 | 13 . . . . . . . . . . . . . . . . . . 11 Treads 2458 | . . . . . . . . . . . . . . 314 . . 18 245 1881 Legs 1523 | 35 1148 340 . . . . . . . . . . . . . . . . . Wheels 16658 | . 6 522 3012 608 818 228 2350 1057 2371 816 932 81 1068 1420 1062 272 35 . . Hover . | . . . . . . . . . . . . . . . . . . . . Flight 88 | . . . . . . . . . . . . . . . . . . . 88 Fastest Speed 40 | 50 115 115 115 120 105 120 120 110 120 135 135 135 135 120 160 175 205 160 40 Average Speed 143 | 101 155 149 120 122 120 120 138 124 131 135 135 135 143 149 191 190 216 230 181 Slowest Speed 320 | 120 190 260 130 160 145 120 170 140 150 135 135 135 150 320 215 205 240 240 245 Overloaded Moves . | . . . . . . . . . . . . . . . . . . . . Propulsion Burnouts . | . . . . . . . . . . . . . . . . . . . . Robots Hopped . | . . . . . . . . . . . . . . . . . . . . Potential Cave-ins 17 | . . . . . . . . . . . . . . 13 . . . . 4 Cave-ins Triggered 3 | . . . . . . . . . . . . . . 1 . . . . 2 Exploration Rate (%) 73 | 3 99 99 98 90 77 34 85 93 60 96 95 70 96 47 96 78 86 24 46 Regions Visited 19 Branch Regions 13 Pre-discovered Areas 17 | . 1 . 3 1 1 . 2 3 3 . 1 1 1 . . . . . . Known Exits Taken 13 | . 1 1 . . . . 1 1 1 1 1 . 1 1 1 1 1 1 . Unknown Exits Taken 6 | 1 . . 1 1 1 1 . . . . . 1 . . . . . . . Scrap Searched 12 | . . 1 . 2 . 2 . . . 3 3 . 1 . . . . . . Spaces Dug 449 | . . . 4 . . . 18 . 14 . . . . 44 . . . 340 29 Terrain Destroyed 1897 | . 63 116 66 66 25 . 56 20 209 . 41 . 27 187 70 . 2 467 482 Melee 17 | . . . 4 . . . 13 . . . . . . . . . . . . Projectile 292 | . . . . . . . 6 . 26 . . . . 74 12 . 2 67 105 AOE 1586 | . 63 116 62 66 25 . 37 20 183 . 41 . 27 113 56 . . 400 377 Terrain Rammed . | . . . . . . . . . . . . . . . . . . . . Walls Destroyed . | . . . . . . . . . . . . . . . . . . . . Machines Disabled . | . . . . . . . . . . . . . . . . . . . . Actions | -11 -10 -10 -9 -9 -9 -8 -8 -8 -7 -7 -7 -7 -6 -6 -6 -6 -6 -6 -5 --------- Run | Yrd Mat Min Mat Min Exi Min Mat Sto Fac Low Low Dat Pro Fac Ext Cet Arc Hub Fac Total 28861 | 69 1535 987 3808 642 976 235 3843 1576 3053 840 977 86 1285 3793 1435 365 72 405 2879 Wait 5404 | . 211 49 560 16 72 3 1235 392 407 6 23 3 177 1680 30 . . 9 531 Move 20731 | 47 1153 861 3011 607 817 227 2349 1056 2370 815 931 80 1067 1732 1061 271 52 244 1980 Hop . | . . . . . . . . . . . . . . . . . . . . Pick Up 326 | 7 25 12 35 1 18 2 40 13 26 2 3 . 5 39 17 21 1 15 44 Fast Attach 140 | 7 5 2 4 . 1 . 9 14 10 . . . . 14 16 6 . 13 39 Attach 152 | . 9 5 9 1 10 . 11 4 10 2 . . 1 34 9 16 1 10 20 Detach 30 | . 1 . 2 . 2 . . 1 5 . . . . 2 5 4 . 1 7 Swap 367 | . 21 10 31 3 9 2 45 24 62 8 9 3 18 51 20 1 . 10 40 Drop 293 | . 19 11 23 . 16 1 39 15 31 2 2 . 4 22 19 30 . 8 51 Fire 1134 | 8 91 37 129 14 5 . 63 53 132 5 9 . 13 218 63 15 17 95 167 Melee 47 | . . . 4 . 26 . 13 1 . . . . . . 2 1 . . . Ram . | . . . . . . . . . . . . . . . . . . . . Kick . | . . . . . . . . . . . . . . . . . . . . Crush . | . . . . . . . . . . . . . . . . . . . . Escape Stasis 9 | . . . . . . . . . . . . . . 1 8 . . . . Rewire 189 | . . . . . . . . 3 . . . . . . 185 . 1 . . Trap 39 | . . . . . . . 39 . . . . . . . . . . . . Miscellaneous . | . . . . . . . . . . . . . . . . . . . . Route ------- -11/Scrapyard -10/Materials (discovered 6 exits: *Mat x3 / *Min x2 / *Sub) -10/Mines (discovered 3 exits: *Mat x2 / *Sub) -9/Materials (discovered 5 exits: *Mat x3 / *Min x2) -9/Mines (discovered 3 exits: *Mat x2 / *Exi) -9/Exiles -8/Mines (discovered 2 exits: *Mat x2) -8/Materials (discovered 5 exits: *Fac x3 / *Sto x2) -8/Storage (discovered 2 exits: *Fac / Rec) -7/Factory (discovered 6 exits: *Fac x4 / *Low x2) -7/Lower Caves -7/Lower Caves (discovered 2 exits: *Fac / *Dat) -7/Data Miner -6/Proximity Caves -6/Factory (discovered 6 exits: *Fac x2 / Low x2 / *Ext x2) -6/Extension (discovered 2 exits: *Fac / *Cet) -6/Cetus (discovered 2 exits: *Fac / *Arc) -6/Archives (discovered 2 exits: *Fac / *Hub) -6/Hub_04(d) -5/Factory (discovered 2 exits: *Upp x2) History --------- Turn | Location | Event 13 | -11/Scrapyard | Discovered new exit (range 15) 90 | -11/Scrapyard | Entered Materials 315 | -10/Materials | Build established: Mutant 444 | -10/Materials | Discovered new exit (range 9) 546 | -10/Materials | Lost 3 parts (2n1u) 725 | -10/Materials | Build established: Scavenger-Mutant 754 | -10/Materials | Discovered new exit (range 16) 927 | -10/Materials | Discovered new exit (range 7) 1100 | -10/Materials | Build established: Mutant 1255 | -10/Materials | Discovered new exit (range 9) 1284 | -10/Materials | Discovered new exit (range 15) 1558 | -10/Materials | Discovered new exit (range 8) 1849 | -10/Materials | Learned 4 Subcaves zone layouts 1867 | -10/Materials | Repaired Imp. Treads 1894 | -10/Materials | Repaired Med. Laser 1895 | -10/Materials | Hacking Suite fried by hacking feedback 1896 | -10/Materials | Learned Storage non-interactive machine intel 1921 | -10/Materials | Repaired Med. Laser 1931 | -10/Materials | Learned Storage security intel 1970 | -10/Materials | Identified exit to Materials 1970 | -10/Materials | Identified exit to Mines 1970 | -10/Materials | Identified exit to Subcaves 2036 | -10/Materials | Learned Storage stockpile data 2434 | -10/Materials | Entered Mines 2437 | -10/Mines | Core integrity fell below 50% 2598 | -10/Mines | Learned 2 Materials zone layouts 2647 | -10/Mines | Assembled infested the area 2652 | -10/Mines | Assisted by a Guerilla fighting off Assembled 2782 | -10/Mines | Discovered exit to Materials (range 10) 2794 | -10/Mines | Found a damaged Exp. Sensor Array with a note attached 2798 | -10/Mines | Found Prototype Device 2799 | -10/Mines | Identified Exp. Sensor Array 2841 | -10/Mines | Met a Derelict shopkeep closing up shop 3474 | -10/Mines | Received a Rocket Launcher from a helpful Derelict 3507 | -10/Mines | Learned Materials terminal intel 3621 | -10/Mines | Discovered exit to Subcaves (range 14) 3808 | -10/Mines | Core integrity fell below 20% 3898 | -10/Mines | Discovered exit to Materials (range 15) 3916 | -10/Mines | Entered Materials 3916 | -9/Materials | Evolved 2 slots: Utility x2 3918 | -9/Materials | Loaded intel: 12 terminal locations 4410 | -9/Materials | Discovered new exit (range 11) 4569 | -9/Materials | Repaired Lgt. EM Pulse Cannon 5051 | -9/Materials | Discovered new exit (range 12) 5379 | -9/Materials | Discovered new exit (range 14) 5722 | -9/Materials | Discovered new exit (range 4) 5800 | -9/Materials | Discovered new exit (range 16) 5996 | -9/Materials | Loaded intel: 11 trap records 6059 | -9/Materials | Learned location of Zion (-6) 6235 | -9/Materials | Learned 2 Storage zone layouts 6277 | -9/Materials | Loaded intel: 46 machine locations 7116 | -9/Materials | First assault squad dispatched 7900 | -9/Materials | Repaired Broken Exp. Sensor Array 8494 | -9/Materials | Sterilization system engaged 8494 | -9/Materials | Non-combat units ordered to evacuate 8594 | -9/Materials | Combat units ordered to evacuate 8604 | -9/Materials | Entered Mines 8638 | -9/Mines | Deemed a non-threat by the Exiles lab entrance 8638 | -9/Mines | Discovered new exit (range 5) 8801 | -9/Mines | Core integrity fell below 50% 8923 | -9/Mines | Discovered new exit (range 9) 8995 | -9/Mines | Learned Materials security intel 9039 | -9/Mines | Found the Drone Emporium 9045 | -9/Mines | Found Prototype Device 9046 | -9/Mines | Identified Sensor Drone Bay 9124 | -9/Mines | Discovered new exit (range 15) 9153 | -9/Mines | Assisted by bots powering up and referring to "LRC-V3" 9408 | -9/Mines | Entered Exiles 9408 | -9/Exiles | Accompanied by 3 allies 9438 | -9/Exiles | Met 8R-AWN 9458 | -9/Exiles | Met EX-HEX 9502 | -9/Exiles | Met EX-DEC 9689 | -9/Exiles | Discovered new exit (range 10) 9806 | -9/Exiles | Visited The Gauntlet 10320 | -9/Exiles | Attacked by the Exiles 10497 | -9/Exiles | Destroyed 8R-AWN 10501 | -9/Exiles | Found Prototype Ballistic Gun 10512 | -9/Exiles | Lost 5 parts (1p1n3u) 10595 | -9/Exiles | Identified 8R-AWN's Boregun 10599 | -9/Exiles | Entered Mines 10599 | -8/Mines | Accompanied by 1 ally 10611 | -8/Mines | Discovered new exit (range 6) 10641 | -8/Mines | Discovered new exit (range 7) 10880 | -8/Mines | Entered Materials 10880 | -8/Materials | Accompanied by 1 ally 10880 | -8/Materials | Evolved 2 slots: Utility x2 10881 | -8/Materials | Identified exit to Storage 12251 | -8/Materials | Discovered exit to Storage (range 15) 12341 | -8/Materials | Lost 4 parts (1n2u1w) 12643 | -8/Materials | Discovered new exit (range 16) 12984 | -8/Materials | Build established: Scavenger-Mutant 13009 | -8/Materials | Discovered new exit (range 4) 13033 | -8/Materials | Identified exit to Factory 13303 | -8/Materials | Build established: Mutant 13333 | -8/Materials | Learned 4 Recycling zone layouts 13401 | -8/Materials | Learned Factory machine intel 13459 | -8/Materials | Learned Factory security intel 13508 | -8/Materials | Learned 2 Lower Caves zone layouts 13545 | -8/Materials | Learned 2 Lower Caves zone layouts 13590 | -8/Materials | Learned 2 Lower Caves zone layouts 14128 | -8/Materials | Build established: Hacker-Mutant 14328 | -8/Materials | Repaired Cld. Ion Engine 14861 | -8/Materials | Learned 12 Factory zone layouts 14983 | -8/Materials | Learned Storage emergency access door positions 15031 | -8/Materials | Learned Storage emergency access door positions 15069 | -8/Materials | Learned Factory emergency access door positions 15098 | -8/Materials | Learned Factory emergency access door positions 15136 | -8/Materials | Learned location of 2 exits from Factory 15148 | -8/Materials | Central database locked down 15185 | -8/Materials | Learned 12 Factory zone layouts 15236 | -8/Materials | Build established: Mutant 15493 | -8/Materials | Repaired Missile Launcher+ 15562 | -8/Materials | Repaired Adv. Weapon Cycler 15613 | -8/Materials | Repaired Beamcaster 15722 | -8/Materials | Entered Storage 15722 | -8/Storage | Accompanied by 1 ally 15723 | -8/Storage | Identified exit to Recycling 15728 | -8/Storage | Loaded intel: 27 non-interactive machine locations 15974 | -8/Storage | Assisted by bots powering up and referring to "LRC-V3" 15990 | -8/Storage | Garrison activated, responded to threat 16050 | -8/Storage | Destroyed 8 combat bots 16266 | -8/Storage | Build established: Commander-Mutant 16358 | -8/Storage | Discovered exit to Factory (range 16) 16449 | -8/Storage | Met a pair of Derelict thieves 16503 | -8/Storage | Destroyed 10 combat bots 16503 | -8/Storage | Lost 8 allies 16769 | -8/Storage | Build established: Mutant 16873 | -8/Storage | Learned Storage security intel 16918 | -8/Storage | Learned location of 2 exits from Lower Caves 16953 | -8/Storage | Learned Storage security intel 16959 | -8/Storage | Repaired Hrd. Medium Armor Plating 16977 | -8/Storage | Learned 4 Recycling zone layouts 17162 | -8/Storage | Build established: Hacker-Mutant 17269 | -8/Storage | Repaired Remote Shield 17302 | -8/Storage | Repaired Arm. Wheel+ 17372 | -8/Storage | Repaired Adv. Weapon Cycler 17405 | -8/Storage | Repaired Arm. Wheel+ 17457 | -8/Storage | Repaired Cld. Ion Engine 17639 | -8/Storage | Entered Factory 17639 | -7/Factory | Evolved 2 slots: Utility x2 17640 | -7/Factory | Identified exit to Factory 17640 | -7/Factory | Identified exit to Lower Caves 17645 | -7/Factory | Loaded intel: 276 machine locations 18570 | -7/Factory | Unchained authorized (GL-D0S) 18818 | -7/Factory | Loaded intel: 6 recycling unit locations 18889 | -7/Factory | Loaded intel: 79 trap records 18908 | -7/Factory | Learned location of Upper Caves (-4) 18920 | -7/Factory | Learned location of Lower Caves (-7) 18928 | -7/Factory | Loaded intel: 6 fabricator locations 18945 | -7/Factory | Learned 2 Hub_04(d) zone layouts 19166 | -7/Factory | Build established: Mutant 19202 | -7/Factory | Garrison activated, responded to threat 19609 | -7/Factory | Fabricated Imp. Force Field (x2) 20039 | -7/Factory | First assault squad dispatched 20124 | -7/Factory | Repaired Imp. Medium Armor Plating 21189 | -7/Factory | Garrison activated, responded to threat 21200 | -7/Factory | Core integrity fell below 50% 21671 | -7/Factory | Entered Lower Caves 21672 | -7/Lower Caves | Identified exit to Lower Caves 22810 | -7/Lower Caves | Entered another Lower Caves area 22812 | -7/Lower Caves | Identified exit to Data Miner 22880 | -7/Lower Caves | Destroyed 7 combat bots 23004 | -7/Lower Caves | Entered an active Warlord outpost 23021 | -7/Lower Caves | Learned Factory trap positions 23021 | -7/Lower Caves | Learned Armory emergency access door positions 23021 | -7/Lower Caves | Learned Factory stockpile data 23021 | -7/Lower Caves | Learned Factory garrison access intel 23485 | -7/Lower Caves | Encountered a Warlord checkpoint 24128 | -7/Lower Caves | Entered Data Miner 24128 | -7/Data Miner | Accompanied by 1 ally 24128 | -7/Data Miner | Discovered new exit (range 6) 24154 | -7/Data Miner | Met Data Miner 24184 | -7/Data Miner | Learned location of Section 7 (-2) 24184 | -7/Data Miner | Acquired the access code to Warlord's prototype stash 24208 | -7/Data Miner | Received God Mode back door access code from Data Miner 24244 | -7/Data Miner | Entered Proximity Caves 24291 | -6/Proximity Caves | Encountered a Derelict sapper outpost 24812 | -6/Proximity Caves | Learned 4 Factory zone layouts 24873 | -6/Proximity Caves | Escorted by Enhanced Grunt 25099 | -6/Proximity Caves | Attracted the attention of an 0b10 checkpoint 26021 | -6/Proximity Caves | Entered Factory 26021 | -6/Factory | Accompanied by 2 allies 26021 | -6/Factory | Evolved 2 slots: Utility x1, Weapon x1 26022 | -6/Factory | Identified exit to Factory 26023 | -6/Factory | Identified exit to Lower Caves 26025 | -6/Factory | Loaded intel: 84 trap records 26028 | -6/Factory | Loaded intel: 4 garrison access locations 26188 | -6/Factory | Unchained authorized (GL-D0S) 26206 | -6/Factory | Garrison activated, responded to threat 26218 | -6/Factory | Found Prototype Device 26218 | -6/Factory | Identified Exp. Thermal Shield 26363 | -6/Factory | Spotted B-75 Beast 26520 | -6/Factory | Incoming investigation squad redirected 26559 | -6/Factory | Destroyed B-75 Beast 26563 | -6/Factory | Lost 3 parts (3u) 26901 | -6/Factory | Incoming investigation squad redirected 27042 | -6/Factory | Identified exit to Extension 27171 | -6/Factory | Build established: Hacker-Skirmisher 27406 | -6/Factory | Discovered exit to Factory (range 16) 28099 | -6/Factory | Destroyed 10 combat bots 28107 | -6/Factory | Lost 8 parts (2p1n3u2w) 28121 | -6/Factory | First assault squad dispatched 28136 | -6/Factory | Incoming assault squad redirected 28603 | -6/Factory | Build established: Tank 28956 | -6/Factory | Lost 10 parts (1p1n4u4w) 29044 | -6/Factory | Core integrity fell below 50% 29052 | -6/Factory | Incoming assault squad redirected 29078 | -6/Factory | Lost 4 parts (2u2w) 29336 | -6/Factory | Build established: Mutant 29387 | -6/Factory | Fabricated Lgt. Regenerative Plating? 29638 | -6/Factory | Build established: Tank 29832 | -6/Factory | Crushed by falling debris 29833 | -6/Factory | System corruption reached 10% 29863 | -6/Factory | Lost 5 parts (1n4u) 30146 | -6/Factory | Build established: Gunner 30591 | -6/Factory | Incoming assault squad redirected 31028 | -6/Factory | Entered Extension 31329 | -6/Extension | Rescued a captive Derelict 31330 | -6/Extension | Rescued a captive Derelict 31376 | -6/Extension | Rescued a captive Derelict 31614 | -6/Extension | Build established: Scavenger-Tank 31634 | -6/Extension | Rescued A7 31728 | -6/Extension | First assault squad dispatched 31754 | -6/Extension | Incoming assault squad redirected 32046 | -6/Extension | Spotted B-75 Beast 32056 | -6/Extension | Allies destroyed B-75 Beast 32068 | -6/Extension | Spotted B-75 Beast 32087 | -6/Extension | Allies destroyed B-75 Beast 32438 | -6/Extension | Discovered new exit (range 16) 32442 | -6/Extension | Discovered exit to Factory (range 14) 33488 | -6/Extension | Disrupted transfer network 33561 | -6/Extension | Identified exit to Cetus 33564 | -6/Extension | Entered Cetus 33564 | -6/Cetus | Accompanied by 3 allies (A7) 33569 | -6/Cetus | Acquired a Cetus Manufacturing Module code from A7 33588 | -6/Cetus | Spotted Cetus Guard 33588 | -6/Cetus | Spotted Cetus Guard 33592 | -6/Cetus | Destroyed Cetus Guard 33597 | -6/Cetus | Spotted Cetus Guard 33598 | -6/Cetus | Spotted Cetus Guard 33601 | -6/Cetus | Allies destroyed Cetus Guard 33609 | -6/Cetus | Destroyed Cetus Guard 33611 | -6/Cetus | Allies destroyed Cetus Guard 33861 | -6/Cetus | Started Cetus Manufacturing Module 33876 | -6/Cetus | System corruption reached 30% 33884 | -6/Cetus | Escorted A7 to Cetus Mainframe 33886 | -6/Cetus | Manufactured an Enhanced Grunt 33911 | -6/Cetus | Manufactured an Enhanced Grunt 33936 | -6/Cetus | Manufactured an Enhanced Grunt 33961 | -6/Cetus | Manufactured an Enhanced Grunt 33968 | -6/Cetus | Discovered new exit (range 15) 33986 | -6/Cetus | Manufactured an Enhanced Grunt 34003 | -6/Cetus | Spotted Cetus Guard 34004 | -6/Cetus | Spotted Cetus Guard 34008 | -6/Cetus | Spotted Cetus Guard 34008 | -6/Cetus | Spotted Cetus Guard 34013 | -6/Cetus | Allies destroyed Cetus Guard 34020 | -6/Cetus | Destroyed Cetus Guard 34020 | -6/Cetus | Allies destroyed Cetus Guard 34023 | -6/Cetus | Allies destroyed Cetus Guard 34053 | -6/Cetus | Discovered exit to Factory (range 16) 34065 | -6/Cetus | Met Revision 17 34185 | -6/Cetus | Identified exit to Archives 34187 | -6/Cetus | Entered Archives 34187 | -6/Archives | Accompanied by 6 allies (A7) 34192 | -6/Archives | Received a hacking code to weaken MAIN.C 34229 | -6/Archives | Unable to access archive contents 34235 | -6/Archives | Met Zhirov 34241 | -6/Archives | Reinforcements dispatched to Archives 34286 | -6/Archives | Reinforcements dispatched to Archives 34302 | -6/Archives | Discovered exit to Factory (range 16) 34306 | -6/Archives | Zhirov detonated Archives 34320 | -6/Archives | Discovered new exit (range 15) 34337 | -6/Archives | Lost 5 parts (2n3u) 34337 | -6/Archives | Lost 5 allies 34347 | -6/Archives | Identified exit to Hub_04(d) 34349 | -6/Archives | Entered Hub_04(d) 34405 | -6/Hub_04(d) | Incoming investigation squad redirected 34542 | -6/Hub_04(d) | Discovered exit to Factory (range 10) 34981 | -6/Hub_04(d) | Found Prototype Launcher 35053 | -6/Hub_04(d) | Found Prototype Launcher 35056 | -6/Hub_04(d) | Identified Scatter Rocket Array (x2) 35263 | -6/Hub_04(d) | Network Hub disabled 35263 | -6/Hub_04(d) | Network Hub disabled 35281 | -6/Hub_04(d) | Entered Factory 35281 | -5/Factory | Evolved 2 slots: Propulsion x1, Utility x1 35437 | -5/Factory | Unchained authorized (GL-D0S) 35471 | -5/Factory | Found Hvy. Reflective Plating 35497 | -5/Factory | Found Hvy. Reflective Plating 35578 | -5/Factory | Discovered new exit (range 24) 35734 | -5/Factory | Fabricated HERF Cannon (x2) 35850 | -5/Factory | Fabricated Exp. Sensor Array (x1) 36124 | -5/Factory | Identified exit to Upper Caves 36516 | -5/Factory | Found Hvy. Reflective Plating 38070 | -5/Factory | Found Unknown Protection 38070 | -5/Factory | Identified Powered Armor 38881 | -5/Factory | First assault squad dispatched 38912 | -5/Factory | Build established: Hacker-Tank 38993 | -5/Factory | Crushed by falling debris 38993 | -5/Factory | System corruption reached 10% 39226 | -5/Factory | Destroyed 10 combat bots 39253 | -5/Factory | Lost 5 parts (1p1u3w) 39262 | -5/Factory | Crushed by falling debris 39298 | -5/Factory | Build established: Scavenger-Tank 39409 | -5/Factory | Lost 6 parts (1p4u1w) 39436 | -5/Factory | Destroyed 10 combat bots 39811 | -5/Factory | Incoming assault squad redirected 39873 | -5/Factory | High security lockdown imminent 39953 | -5/Factory | High security lockdown engaged 40031 | -5/Factory | Destroyed 15 combat bots 40031 | -5/Factory | Released all parts (10) 40033 | -5/Factory | Core integrity fell below 50% 40056 | -5/Factory | Core integrity fell below 20% 40059 | -5/Factory | Lost 8 parts (1n6u1w) 40083 | -5/Factory | Destroyed by P-70 Sage with Tesla Rifle Last Messages --------------- 40050_ Acquired Drone Bay. 40053_ Acquired 195 matter. 40054_ Acquired Prototype Energy Cannon. 40061_ Acquired Huge Storage Unit. 40073_ System corrupted: Energy discharge (-37). 40073_ ALERT: Assault forces dispatched. 40073_ C-45 Heavy ARC bursts open, deploying its payload. 40073_ P-70 Sage unfolds itself. 40073_ H-66 Slayer unfolds itself. 40073_ I-47 Archangel unfolds itself. 40074_ Penetrated by Slug. 40074_ Slug penetrates Wall. 40077_ Penetrated by Slug. 40077_ Slug penetrates Wall. 40080_ Nuclear Pulse Array destroyed. 40080_ Slug penetrates Wall. 40080_ Penetrated by Slug. 40081_ Slug penetrates Wall. 40082_ Dropped Med. Storage Unit. Map ----- +----------------------------------------------------+ | # #??????????????# #???# | | +########### #??????######### ##### | | # | | # | | + | | # !! | | #! * | | ######### ##########+### %# | | #?? ## #??????? ???# # | | #?? ## #??????""????# # | | #?? ## #????? ??????# ############ | | #?? ## #??????? # ### | | #?" " ## #????????????# # #=""" | | #?" " ## #????????????# ###" "" | | # " " ## #????????????# #?#"""" | | # " " ## #????????????# #?#"""" | | # " " ## #????????????# #?#"""" ! | | # " " ## #????????????? ??#"""" ! | | # " " ## #????????????? ??#"""" | | # " " ## #????????????# ??? #?# [ | | # " " ## #????????????# ?? #?# | | # ## #????????????# ####+##### | | ###"##### ############## s ??? ???? | | s ?? ???? | | ]![ s ? ??? | | !@ s s""???"""" ??? | | ""?? """" ?? | | p ""?? """" ?? | | hi ""? """" ? | | = ""? ???? ? | | h "? ????? # | | ####"" ""###### w ??????? | | ???#""F""#????# ???????? | | ???# """ #????# ?????????? | | ????#####?????# ?????????? ? | | ??????????????# ????????????? | | ??????????????# !! ????????????? | | ??????????????# !! ??????????????? | | ??????????????? #""" """#####????????????????? | | ??????????????????????""T"""?????????????????????? | | ?????????????????????????????????????????????????? | | ?????????????????????????????????????????????????? | | ?????????????????????????????????????????????????? | | ?????????????????????????????????????????????????? | | ?????????????????????????????????????????????????? | | ?????????????????????????????????????????????????? | | ?????????????????????????????????????????????????? | | ?????????????????????????????????????????????????? | | ?????????????????????????????????????????????????? | | ?????????????????????????????????????????????????? | +----------------------------------------------------+ Best States ------------- Heat Dissipation 97 Energy Generation 25 Energy Capacity 500 Matter Stores 300 Matter Capacity 300 Sight Range 22 Robot Scan Range 20 Terrain Scan Range 20 Terrain Scan Density 210 Jamming Range 12 Corruption Containment 8 Corruption Block 8 Armor Coverage 1275 Resistance: KI 30 Resistance: TH 30 Core Shielding 20 Propulsion Shielding 33 Weapon Cycling 25 Phase Shifting 5 Evasion (%) 62 Targeting Accuracy 8 Target Analysis 8 Core Analysis 6 Recoil Reduction 3 Energy Filtering 30 Particle Charging 20 Kinecelleration 40 Offensive Hacking 24 Defensive Hacking 20 Authchip Count 1 Item Schematics ----------------- Imp. Medium Laser | -9/Materials | Scanalyzed Imp. EM Shotgun | -9/Materials | Scanalyzed Exp. Sensor Array | -9/Materials | Scanalyzed Imp. Assault Rifle | -8/Materials | Scanalyzed Shock Bomb Launcher | -8/Materials | Scanalyzed Prc. Shock Rifle | -8/Materials | Scanalyzed Hvy. Armor Plating | -8/Materials | Scanalyzed Hcp. Battery | -8/Materials | Scanalyzed Imp. Medium Treads | -8/Storage | Hacked Imp. Cooling System | -8/Storage | Hacked Power Sword | -8/Storage | Hacked F-cell Engine | -7/Factory | Scanalyzed Arm. Wheel | -7/Factory | Scanalyzed Adv. Weapon Cycler | -7/Factory | Scanalyzed Arm. Medium Treads | -7/Factory | Hacked Combat Drone Bay | -7/Data Miner | Free Lgt. Regenerative Plating | -7/Data Miner | Free Cld. Cesium-ion Thruster | -7/Data Miner | Free Gravity Neutralizer | -7/Data Miner | Free Imp. Lightning Gun | -7/Data Miner | Free Antigrav System | -7/Data Miner | Free Imp. Transmission Jammer | -7/Data Miner | Free Lrn. Proton Cannon | -7/Data Miner | Free Adv. Particle Charger | -7/Data Miner | Free Neutron Cannon | -6/Factory | Scanalyzed Robot Schematics ------------------ Y-45 Defender | -8/Storage | Hacked B-48 Gladiator | -7/Data Miner | Free H-55 Commando | -7/Data Miner | Free Y-54 Guardian | -7/Data Miner | Free A-15 Conveyor | -7/Data Miner | Free Y-64 Sentinel | -7/Data Miner | Free M-22 Extractor | -7/Data Miner | Free R-10 Processor | -7/Data Miner | Free Fabricated ------------ Imp. Force Field | x2 | -7/Factory | Preloaded Lgt. Regenerative Plating | x1 | -6/Factory | Authchip HERF Cannon | x2 | -5/Factory | Preloaded Exp. Sensor Array | x1 | -5/Factory Repaired ---------- Imp. Treads | 47% | -10/Materials Med. Laser | 20% | -10/Materials Med. Laser | 70% | -10/Materials Lgt. EM Pulse Cannon | 38% | -9/Materials Exp. Sensor Array | 62% | -9/Materials | Broken Cld. Ion Engine | 19% | -8/Materials Missile Launcher | 34% | -8/Materials Adv. Weapon Cycler | 80% | -8/Materials Beamcaster | 96% | -8/Materials Hrd. Medium Armor Plating | 30% | -8/Storage Remote Shield | 32% | -8/Storage Arm. Wheel | 41% | -8/Storage Adv. Weapon Cycler | 54% | -8/Storage Arm. Wheel | 75% | -8/Storage Cld. Ion Engine | 37% | -8/Storage Imp. Medium Armor Plating | 35% | -7/Factory Studied --------- Arm. Wheel | -9/Materials | Hacked Imp. Treads | -9/Materials | Hacked Shock Bomb Launcher | -8/Materials | Hacked Ion Cannon | -8/Materials | Hacked Flak Cannon | -8/Materials | Hacked Missile Launcher | -8/Materials | Hacked Arm. Huge Wheel | -7/Factory | Hacked Alien Tech Used ----------------- None Achievements -------------- That Tickles Thread The Needle Around The Corner Treasure Hunter Challenges ------------ None Game ------ Seed AerolevCorruptionArticulator Manual? 0 Play Time 07:21:49 Cumulative 718.5 hours Start 2025.11.21 @ 00:58:29 End 2025.11.22 @ 03:46:23 Sessions 3 Manual Loads 0 Difficulty Rogue Special Mode None Game No. 499 Rogue 499 Adventurer 0 Explorer 0 Win Type - Total 1 Types 1/0/0/0/0/0/0/0/0/0 Lore% 68 Gallery% 67 Achievement% 46 Wizard Run 0 Options --------- Layout 1 ASCII 0 Keyboard 0 Movement Mouse Keybinds 0 Fullscreen 1 Font 20/SmallcapsGlow Map View 54x42 Zoom Use 0% Tactical HUD 1 Map Filters NONE Filters NONE Steam 1 RUN: 885179dc-9672-4cac-9beb-e55c3c89ab67